Cogmind - Beta 11.1 @@@ ROGUE MODE // 2022.06.06 @ 17:50:31 Player: btmk16 Result: Core destroyed Performance ------------- Evolutions (6) 3000 Regions Visited (13) 2600 Robots Destroyed (208) 1040 Value Destroyed (6860) 6860 Prototype IDs (10) 200 Alien Tech Used (0) 0 Bonus (1410) 1410 TOTAL SCORE: 15110 Bonus ------- High Alert Combat Kills 743 Follower Combat Kills 90 Met Warlord at Base 500 MAIN.C Attacked Warlord 500 Friendly Fire -423 Cogmind --------- Core Integrity 0/1150 Matter 239/300 Energy 196/310 System Corruption 0% Temperature Critical (555) Movement Treading (240) Ox1 Location -3/Proximity Caves Parts ------- > --- POWER (2) -------- Reinforced Fission Core > --- PROPULSION (6) --- Medium Treads Medium Treads Flexi-carbon Leg > --- UTILITY (7) ------ Makeshift Terrain Scan Processor Advanced Melee Analysis Suite Improved Target Analyzer > --- WEAPON (4) ------- Vortex Driver > --- INVENTORY (5) ---- Fission Core Improved Hardlight Generator Tesla Rifle Peak State ------------ > --- POWER ------------ Reinforced Fission Core Micro Fission Core > --- PROPULSION ------- Flexi-carbon Leg Flexi-carbon Leg Flexi-carbon Leg Myomer Leg Myomer Leg Myomer Leg > --- UTILITY ---------- Makeshift Terrain Scan Processor Makeshift Terrain Scan Processor Advanced Melee Analysis Suite Improved Target Analyzer Hardened Medium Armor Plating Improved Powered Armor > --- WEAPON ----------- Vortex Driver Vortex Driver Greatsword > --- INVENTORY -------- Fission Core Improved Hardlight Generator Tesla Rifle Greatsword [Rating: 103] Favorites ----------- Power Heavy Ion Engine Engine Heavy Ion Engine Power Core Reinforced Fission Core Reactor Heavy Antimatter Reactor Propulsion Light Treads Treads Light Treads Leg Myomer Leg Wheel Armored Huge Wheel Hover Unit Improved Hover Unit Utility High-capacity Storage Unit Device Weapon Cycler Storage High-capacity Storage Unit Processor Improved Targeting Computer Hackware Hacking Suite Protection Hardened Medium Armor Plating Weapon Enhanced Autogun Energy Gun Beam Rifle Energy Cannon Advanced Beam Cannon Ballistic Gun Enhanced Autogun Ballistic Cannon Mini Assault Cannon Launcher Micro-nuke Launcher Impact Weapon Heavy Mace Slashing Weapon Greatsword Build | -11 -10 -9 -8 -7 -6 -5 -5 -5 -4 -4 -4 -4 -3 ------- Run | Scr Mat Mat Mat Fac Fac Fac Upp Upp Fac Upp Upp War Pro Slots Evolved 12 | . . 2 2 2 2 2 . . 2 . . . . Power 1 | . . . . . . . . . 1 . . . . Propulsion 4 | . . 1 . 1 . 2 . . . . . . . Utility 5 | . . 1 2 1 . . . . 1 . . . . Weapon 2 | . . . . . 2 . . . . . . . . Parts Attached 191 | . 6 23 27 40 13 11 5 . 23 23 11 4 5 Power 23 | . 3 3 1 4 2 1 . . 3 5 1 . . Engine 15 | . 3 3 1 4 2 1 . . 1 . . . . Core 4 | . . . . . . . . . . 3 1 . . Reactor 4 | . . . . . . . . . 2 2 . . . Propulsion 55 | . 1 10 10 11 4 2 . . 5 4 4 2 2 Treads 31 | . . 8 10 8 . . . . 1 2 . . 2 Leg 11 | . 1 1 . . 1 . . . . 2 4 2 . Wheel 6 | . . 1 . 3 2 . . . . . . . . Hover 7 | . . . . . 1 2 . . 4 . . . . Flight . | . . . . . . . . . . . . . . Utility 77 | . 1 4 11 17 4 7 5 . 12 11 5 . . Device 39 | . . 2 8 8 4 5 2 . 7 3 . . . Storage 5 | . 1 1 . . . 1 . . 1 1 . . . Processor 11 | . . 1 1 . . 1 1 . 2 2 3 . . Hackware 6 | . . . . 1 . . 2 . 2 1 . . . Protection 16 | . . . 2 8 . . . . . 4 2 . . Artifact . | . . . . . . . . . . . . . . Weapon 36 | . 1 6 5 8 3 1 . . 3 3 1 2 3 Energy Gun 3 | . . 2 1 . . . . . . . . . . Energy Cannon 7 | . . 2 1 . . . . . . . . 2 2 Ballistic Gun 11 | . 1 2 3 4 . . . . . 1 . . . Ballistic Cannon 5 | . . . . 2 3 . . . . . . . . Launcher 2 | . . . . 1 . . . . 1 . . . . Special Weapon . | . . . . . . . . . . . . . . Impact Weapon 1 | . . . . 1 . . . . . . . . . Slashing Weapon 7 | . . . . . . 1 . . 2 2 1 . 1 Piercing Weapon . | . . . . . . . . . . . . . . Special Melee Weapon . | . . . . . . . . . . . . . . Unidentified Prototypes 10 | . . 2 2 2 1 1 . . 1 . . 1 . Parts Lost 77 | . 1 3 5 22 10 1 . . 1 18 4 1 11 Power 7 | . . . 1 1 2 . . . . 2 . . 1 Propulsion 32 | . . 1 1 11 4 1 . . 1 7 1 . 5 Utility 23 | . . . 2 7 2 . . . . 6 2 1 3 Weapon 15 | . 1 2 1 3 2 . . . . 3 1 . 2 Highest Loss Streak 12 | . 1 2 3 12 8 1 . . 1 9 2 1 11 To Critical Strikes . | . . . . . . . . . . . . . . Average Slot Usage (%) 81 | . 84 92 99 97 45 41 55 58 75 42 77 87 80 Engine 6 | . 14 11 9 6 2 2 5 5 4 . . . . Core 1 | . . . . . . . . . . 4 10 10 9 Treads 15 | . . 29 26 28 . . . . . 3 5 4 . Leg 4 | . 28 1 . . 1 . . . . . 16 22 27 Hover 1 | . . . . . . 12 11 11 19 . . . . Device 13 | . . 17 19 17 7 12 20 23 15 5 5 4 . Storage 6 | . 14 11 9 7 4 1 1 . 1 3 . . . Processor 6 | . . . 9 6 . 4 1 . 4 6 16 21 21 Hackware 2 | . . . . 4 4 . 6 11 12 4 1 . . Protection 4 | . . . 6 6 . . . . . 2 8 10 7 Energy Cannon 1 | . . 4 4 . . . . . . . . 6 6 Ballistic Gun 7 | . 27 11 13 6 . . . . . . . . . Ballistic Cannon 2 | . . . . 8 13 . . . . . . . . Slashing Weapon 2 | . . . . . . 4 5 5 10 7 10 6 6 Naked Turns 163 | . . . . . 163 . . . . . . . . Heaviest Build 84 | 11 18 58 66 73 67 18 13 13 52 72 74 84 83 Greatest Support 135 | 20 20 60 62 90 48 22 14 14 58 51 90 135 135 Greatest Overweight (x) 23 | . . . 1 2 1 1 . . 1 23 2 . 2 Average Overweight (x) . | . . . . . . . . . . 3 . . . Largest Inventory Capacity 20 | . 10 20 20 20 20 5 5 5 10 10 10 5 5 Average Capacity 13 | . 9 11 20 20 15 5 5 5 6 8 5 5 5 Most Carried 20 | . 10 18 20 20 12 5 5 5 10 10 10 5 5 Average Carried 13 | . 8 10 19 19 8 4 4 5 5 8 5 5 4 Final Capacity 20 | 8 10 20 20 20 5 5 5 5 10 10 5 5 5 Final Carried 20 | 6 10 18 20 12 5 5 5 5 10 10 5 5 3 Class Distribution -------------------- 46% | Scavenger-Mutant 33% | Mutant 12% | Scavenger-Gladiator 3% | Hacker-Mutant Dominant Class ---------------- Mutant | -10/Materials Scavenger-Mutant | -9/Materials Scavenger-Mutant | -8/Materials Scavenger-Mutant | -7/Factory Mutant | -6/Factory Mutant | -5/Factory Hacker-Mutant | -5/Upper Caves Hacker-Mutant | -5/Upper Caves Hacker-Mutant | -4/Factory Mutant | -4/Upper Caves Scavenger-Gladiator | -4/Upper Caves Scavenger-Gladiator | -4/Warlord Scavenger-Gladiator | -3/Proximity Caves Resources | -11 -10 -9 -8 -7 -6 -5 -5 -5 -4 -4 -4 -4 -3 ----------- Run | Scr Mat Mat Mat Fac Fac Fac Upp Upp Fac Upp Upp War Pro Matter Collected 6370 | 170 428 466 1512 2050 694 336 36 36 221 236 105 50 30 Remotely 391 | . . . . . . 246 36 36 32 41 . . . Salvage Created 8807 | . 784 830 2452 2382 266 336 . . 326 423 691 . 317 Parts 458 | . 53 68 132 103 18 23 . . 13 15 27 . 6 Haulers Intercepted 14 | . 2 5 5 1 . . . . . . 1 . . Recyclers Shooed 10 | . 2 3 3 1 . . . . 1 . . . . Parts Field Recycled . | . . . . . . . . . . . . . . Retrieved Matter . | . . . . . . . . . . . . . . Parts Self-Destructed 33 | . . . . . . . . . . 4 24 . 5 Prevented 3 | . . . . . . . . . . 3 . . . Kills | -11 -10 -9 -8 -7 -6 -5 -5 -5 -4 -4 -4 -4 -3 ------- Run | Scr Mat Mat Mat Fac Fac Fac Upp Upp Fac Upp Upp War Pro Combat Hostiles Destroyed 140 | . 13 15 42 47 6 . . . . 3 7 . 7 Melee 11 | . . . . . . . . . . 3 7 . 1 Guns 81 | . 13 15 37 16 . . . . . . . . . Cannons 46 | . . . 5 29 6 . . . . . . . 6 AOE 2 | . . . . 2 . . . . . . . . . Classes Destroyed 18 | . 7 2 4 3 . . . . . 1 1 . . Worker 11 | . 1 . 5 2 2 1 . . . . . . . Builder 14 | . 2 1 3 2 3 3 . . . . . . . Tunneler 2 | . 1 . . 1 . . . . . . . . . Hauler 14 | . 2 5 5 1 . . . . . . 1 . . Recycler 15 | . 3 1 2 5 . 2 . . 2 . . . . Minesweeper 1 | . . . . . . . . . . . 1 . . Operator 1 | . . . 1 . . . . . . . . . . Watcher 10 | . . 2 2 2 1 1 . . 2 . . . . Swarmer 25 | . 6 6 10 1 . . . . . . . . 2 Grunt 67 | . 7 6 20 24 3 . . . . . 5 . 2 Brawler 5 | . . . . 2 . . . . . . . . 3 Duelist 5 | . . . . 5 . . . . . . . . . Sentry 17 | . . 3 8 5 1 . . . . . . . . Specialist 4 | . . . 2 2 . . . . . . . . . Hunter 6 | . . . 1 1 2 . . . . 2 . . . Programmer 8 | . . . . 6 . . . . . . 2 . . Heavy 2 | . . . 1 1 . . . . . . . . . Behemoth 1 | . . . . . . . . . . 1 . . . Decomposer 2 | . . . . . . . . . . 2 . . . Packrat 1 | . . . . . . . . . . 1 . . . Savage 1 | . . . . . . . . . . 1 . . . Best Kill Streak 7 | . 4 3 6 7 4 3 . . 2 1 4 . 7 Combat Bots Only 7 | . 3 3 5 5 3 . . . . 1 4 . 7 Max Kills in Single Turn 2 | . 2 2 2 2 2 1 . . 1 1 1 . 2 Gunslinging 1 | . . 1 1 . . . . . . . . . . Exploded 1 | . . . . 1 . . . . . . . . . Melee 1 | . . . . . . . . . . 1 1 . 1 Uniques/NPCs Destroyed . | . . . . . . . . . . . . . . Combat | -11 -10 -9 -8 -7 -6 -5 -5 -5 -4 -4 -4 -4 -3 -------- Run | Scr Mat Mat Mat Fac Fac Fac Upp Upp Fac Upp Upp War Pro Damage Taken 15704 | . 639 825 1933 4365 2151 121 . 19 117 2556 917 424 1637 Core 3090 | . 124 186 250 483 843 . . . 17 845 86 . 256 Absorbed by Shields 942 | . . . . 942 . . . . . . . . . Regen/Repaired (Parts) 149 | . . . 149 . . . . . . . . . . Core Remaining (%) 55 | 100 50 53 54 31 . . . 100 . . . . . Volleys Fired 583 | . 90 102 180 166 39 . . . . . . . 6 Largest 4 | . 2 2 2 2 4 . . . . . . . 2 Hottest 200 | . 40 136 136 96 192 . . . . . . . 200 Shots Fired 1152 | . 179 160 352 333 116 . . . . . . . 12 Gun 761 | . 179 154 290 138 . . . . . . . . . Cannon 389 | . . 6 62 193 116 . . . . . . . 12 Launcher 2 | . . . . 2 . . . . . . . . . Special . | . . . . . . . . . . . . . . Kinetic 1037 | . 179 121 290 331 116 . . . . . . . . Thermal 101 | . . 39 62 . . . . . . . . . . Explosive 2 | . . . . 2 . . . . . . . . . Electromagnetic . | . . . . . . . . . . . . . . Entropic 12 | . . . . . . . . . . . . . 12 Robot Hit Streak 23 | . 7 11 20 23 9 . . . . . . . 7 Robot Miss Streak 7 | . 6 3 5 4 7 . . . . . . . 1 Penetration Max 1 | . . . . 1 . . . . . . . . 1 Secondary Targets 12 | . 2 2 5 3 . . . . . . . . . Max Gunslinging Chain 1 | . 1 1 1 1 . . . . . . . . . Shots Hit Robots 833 | . 97 109 252 220 56 12 . . 8 34 33 2 10 Core Hits 348 | . 37 41 100 105 25 5 . . 5 8 14 1 7 Critical Kills 2 | . . . 1 1 . . . . . . . . . Critical Parts Destroyed 4 | . 2 . 1 1 . . . . . . . . . Critical Strikes 40 | . 2 3 2 14 4 . . . 1 2 4 1 7 Burn 3 | . . 3 . . . . . . . . . . . Destroy 6 | . 2 . 2 2 . . . . . . . . . Blast 16 | . . . . 12 4 . . . . . . . . Sever 8 | . . . . . . . . . 1 2 4 1 . Sunder 7 | . . . . . . . . . . . . . 7 Melee Attacks 148 | . . . . . . 31 . . 25 46 41 2 3 Impact . | . . . . . . . . . . . . . . Slashing 148 | . . . . . . 31 . . 25 46 41 2 3 Piercing . | . . . . . . . . . . . . . . Sneak Attacks 20 | . . . . . . 6 . . 2 8 3 1 . Combat Hostiles . | . . . . . . . . . . . . . . Follow-up Attacks 12 | . . . . . . . . . 2 5 5 . . Damage Inflicted 21235 | . 1045 1305 4622 6451 1544 862 . . 461 1875 1932 154 984 Guns 8138 | . 1042 1243 3818 2035 . . . . . . . . . Cannons 6779 | . . 62 804 3497 1535 . . . . . . . 881 Explosions 878 | . . . . 878 . . . . . . . . . Melee 5382 | . . . . . . 862 . . 461 1870 1932 154 103 Ramming 58 | . 3 . . 41 9 . . . . 5 . . . Kinetic 12874 | . 1042 947 3818 5532 1535 . . . . . . . . Thermal 1526 | . . 358 804 364 . . . . . . . . . Explosive 514 | . . . . 514 . . . . . . . . . Electromagnetic . | . . . . . . . . . . . . . . Impact . | . . . . . . . . . . . . . . Slashing 5382 | . . . . . . 862 . . 461 1870 1932 154 103 Piercing . | . . . . . . . . . . . . . . Entropic 881 | . . . . . . . . . . . . . 881 Highest Corruption 13 | . . . 5 13 . 9 9 9 . 3 5 5 . Average Corruption 5 | . . . 4 5 . 8 9 9 . 2 3 5 . Corruption Purged . | . . . . . . . . . . . . . . Corruption Blocked . | . . . . . . . . . . . . . . Effects 164 | . . . 40 84 . 17 4 2 . 10 5 2 . Message Errors 37 | . . . 13 14 . 3 . . . 5 1 1 . Matter Fused 44 | . . . 11 24 . 3 3 1 . 1 . 1 . Heat Flow Errors 16 | . . . 2 10 . 1 1 1 . 1 . . . Energy Discharges 20 | . . . 5 8 . 4 . . . 2 1 . . Parts Rejected 2 | . . . . 1 . 1 . . . . . . . Data Loss (minor) 20 | . . . 4 11 . 3 . . . 1 1 . . Data Loss (major) 8 | . . . 1 6 . 1 . . . . . . . Misfires 4 | . . . 1 3 . . . . . . . . . Alerts 7 | . . . . 4 . 1 . . . . 2 . . Misdirections 1 | . . . . 1 . . . . . . . . . Weapon Failures 5 | . . . 3 2 . . . . . . . . . Overload Shots . | . . . . . . . . . . . . . . Overflow Damage 819 | . . . . 161 9 184 . . 84 275 71 . 35 Projectiles 67 | . . . . 23 9 . . . . . . . 35 Explosions 138 | . . . . 138 . . . . . . . . . Melee 614 | . . . . . . 184 . . 84 275 71 . . Knockbacks 39 | . . . . 15 24 . . . . . . . . Impact . | . . . . . . . . . . . . . . Kinetic 35 | . . . . 15 20 . . . . . . . . Secondary 4 | . . . . . 4 . . . . . . . . Self-Inflicted Damage 231 | . . . . 225 4 . . . . 2 . . . Shots 3 | . . . . 3 . . . . . . . . . Rammed 11 | . . . . 9 1 . . . . 1 . . . Targets Rammed 12 | . 1 . . 9 1 . . . . 1 . . . Kicked 1 | . 1 . . . . . . . . . . . . Crushed . | . . . . . . . . . . . . . . Highest Temperature 659 | . 27 18 150 468 320 251 264 228 18 186 26 8 659 Average Temperature 107 | . 10 8 14 133 94 129 136 115 9 94 10 7 432 Received Heat Transfer 3697 | . 210 273 639 1549 291 27 . 9 . 126 215 24 334 Effects 15 | . . . . 4 1 . . . . . . . 10 Shutdowns 4 | . . . . 1 . . . . . . . . 3 Energy Bleed 2 | . . . . 1 1 . . . . . . . . Interference 5 | . . . . 1 . . . . . . . . 4 Matter Decay 2 | . . . . 1 . . . . . . . . 1 Damage (minor) 1 | . . . . . . . . . . . . . 1 Damage (core) 1 | . . . . . . . . . . . . . 1 Siege Activations . | . . . . . . . . . . . . . . Robots Corrupted . | . . . . . . . . . . . . . . Combat Hostiles . | . . . . . . . . . . . . . . Parts Fried . | . . . . . . . . . . . . . . Impact Corruptions . | . . . . . . . . . . . . . . Robots Melted . | . . . . . . . . . . . . . . Combat Hostiles . | . . . . . . . . . . . . . . Parts Melted 8 | . . 3 5 . . . . . . . . . . Heat Transferred 2766 | . . 1073 1443 250 . . . . . . . . . Parts Sabotaged . | . . . . . . . . . . . . . . Parts Stolen . | . . . . . . . . . . . . . . Parts Stripped . | . . . . . . . . . . . . . . Power Chain Reactions . | . . . . . . . . . . . . . . Missiles Intercepted . | . . . . . . . . . . . . . . Alert | -11 -10 -9 -8 -7 -6 -5 -5 -5 -4 -4 -4 -4 -3 ------- Run | Scr Mat Mat Mat Fac Fac Fac Upp Upp Fac Upp Upp War Pro Peak Influence 919 | . 273 423 735 919 675 375 . . 206 . . . . Initial 392 | . . 66 120 297 392 330 . . 84 . . . . Average 338 | . 156 250 351 422 490 295 . . 104 . . . . Maximum Alert Level 3 | . 1 2 3 3 2 1 . . 1 . . . . Low Security (%) 24 | . 72 24 29 3 . 9 . . 95 . . . . Level 1 43 | . 27 71 18 63 19 90 . . 5 . . . . Level 2 26 | . . 3 50 18 80 . . . . . . . . Level 3 5 | . . . 1 14 . . . . . . . . . Level 4 . | . . . . . . . . . . . . . . Level 5 . | . . . . . . . . . . . . . . High Security . | . . . . . . . . . . . . . . Max Security . | . . . . . . . . . . . . . . Squads Dispatched 41 | . 3 4 7 18 6 1 . . 1 . . . 1 Investigation 16 | . 2 2 3 6 1 1 . . 1 . . . . Extermination 5 | . . . . 5 . . . . . . . . . Reinforcement 16 | . 1 2 4 4 5 . . . . . . . . Assault 4 | . . . . 3 . . . . . . . . 1 Garrison . | . . . . . . . . . . . . . . Intercept . | . . . . . . . . . . . . . . Searches Triggered . | . . . . . . . . . . . . . . Construction Impeded 4 | . . 1 . 1 2 . . . . . . . . Haulers Reinforced 1 | . . . . . 1 . . . . . . . . Active Scanning Responses . | . . . . . . . . . . . . . . Cargo Convoy Interrupts . | . . . . . . . . . . . . . . Stealth | -11 -10 -9 -8 -7 -6 -5 -5 -5 -4 -4 -4 -4 -3 --------- Run | Scr Mat Mat Mat Fac Fac Fac Upp Upp Fac Upp Upp War Pro Distress Signals 13 | . . 3 7 . 1 1 . . . . . 1 . Communications Jammed . | . . . . . . . . . . . . . . Distress Signals . | . . . . . . . . . . . . . . Times Spotted 282 | . 21 29 66 81 32 4 . 3 10 6 8 14 8 Peak Tracking Total 14 | . 3 6 6 14 8 2 . 3 10 2 5 6 9 Tactical Retreats 17 | . 4 . . 1 7 . . . 2 2 1 . . Traps | -11 -10 -9 -8 -7 -6 -5 -5 -5 -4 -4 -4 -4 -3 ------- Run | Scr Mat Mat Mat Fac Fac Fac Upp Upp Fac Upp Upp War Pro Traps Triggered 15 | . 2 . 3 7 . 2 . . 1 . . . . Indirectly . | . . . . . . . . . . . . . . Trap Hack Attempts . | . . . . . . . . . . . . . . Triggered . | . . . . . . . . . . . . . . Disarmed . | . . . . . . . . . . . . . . Reprogrammed . | . . . . . . . . . . . . . . Reused . | . . . . . . . . . . . . . . Traps Extracted . | . . . . . . . . . . . . . . Installed . | . . . . . . . . . . . . . . Triggered 11 | . . . . . . . . . . 1 . 10 . Machines | -11 -10 -9 -8 -7 -6 -5 -5 -5 -4 -4 -4 -4 -3 ---------- Run | Scr Mat Mat Mat Fac Fac Fac Upp Upp Fac Upp Upp War Pro Machines Disabled 11 | . . . . 7 3 . . . . . . . 1 Max in Single Turn 2 | . . . . 2 2 . . . . . . . 1 Garrison Access 2 | . . . 1 1 . . . . . . . . . Machines Sabotaged . | . . . . . . . . . . . . . . Garrisons Compromised . | . . . . . . . . . . . . . . Overloaded Fab Kills . | . . . . . . . . . . . . . . Hacking | -11 -10 -9 -8 -7 -6 -5 -5 -5 -4 -4 -4 -4 -3 --------- Run | Scr Mat Mat Mat Fac Fac Fac Upp Upp Fac Upp Upp War Pro Machines Accessed 52 | . 4 5 9 17 2 2 1 . 7 1 . 4 . Terminals 26 | . 3 3 5 8 1 2 . . 4 . . . . Fabricators 8 | . . . . 4 1 . . . 3 . . . . Repair Stations 1 | . . . 1 . . . . . . . . . . Recycling Units 9 | . 1 2 2 4 . . . . . . . . . Scanalyzers . | . . . . . . . . . . . . . . Garrison Access 2 | . . . 1 1 . . . . . . . . . Total Hacks 115 | . 7 15 24 35 6 4 1 . 12 1 . 10 . Successful 63 | . 3 7 13 17 1 1 1 . 9 1 . 10 . Failed 51 | . 3 8 11 18 5 3 . . 3 . . . . Catastrophic 14 | . . 1 2 6 3 . . . 2 . . . . Database Lockouts 1 | . 1 . . . . . . . . . . . . Manual 73 | . 7 8 16 27 5 2 . . 8 . . . . Terminals 70 | . 6 13 17 20 3 4 . . 7 . . . . Fabricators 14 | . . . . 6 3 . . . 5 . . . . Repair Stations 3 | . . . 3 . . . . . . . . . . Recycling Units 14 | . 1 2 3 8 . . . . . . . . . Scanalyzers . | . . . . . . . . . . . . . . Garrison Access 2 | . . . 1 1 . . . . . . . . . Terminal Hacks 39 | . 2 5 8 6 1 1 1 . 4 1 . 10 . Record 8 | . . . . . . . . . . . . 8 . Robot Analysis 3 | . 1 . 1 1 . . . . . . . . . Open Door 4 | . . . . . . . 1 . . 1 . 2 . Branch Access Points 1 | . . . . . . . . . 1 . . . . Machine Index 1 | . . . . . . . . . 1 . . . . Terminal Index 1 | . . . . . . 1 . . . . . . . Recycling Unit Index 4 | . 1 1 1 1 . . . . . . . . . Alert Level 5 | . . 1 1 1 1 . . . 1 . . . . Unreport Threat 4 | . . . 2 2 . . . . . . . . . Transport Status 1 | . . 1 . . . . . . . . . . . Recall Investigation 2 | . . 1 . 1 . . . . . . . . . Hauler Manifests 2 | . . . 2 . . . . . . . . . . Registered Components 1 | . . . 1 . . . . . . . . . . Zone Layout 2 | . . 1 . . . . . . 1 . . . . Fabricator Hacks 2 | . . . . 1 . . . . 1 . . . . Network Status 2 | . . . . 1 . . . . 1 . . . . Repair Station Hacks 2 | . . . 2 . . . . . . . . . . Scan Component 1 | . . . 1 . . . . . . . . . . Repair 1 | . . . 1 . . . . . . . . . . Recycling Unit Hacks . | . . . . . . . . . . . . . . Scanalyzer . | . . . . . . . . . . . . . . Garrison Access Hacks 2 | . . . 1 1 . . . . . . . . . Seal Access 2 | . . . 1 1 . . . . . . . . . Unauthorized Hacks 18 | . 1 2 2 9 . . . . 4 . . . . Terminals 3 | . . . . 2 . . . . 1 . . . . Track 1 | . . . . . . . . . 1 . . . . Botnet 2 | . . . . 2 . . . . . . . . . Fabricators 6 | . . . . 3 . . . . 3 . . . . Fabnet 6 | . . . . 3 . . . . 3 . . . . Repair Stations . | . . . . . . . . . . . . . . Recycling Units 9 | . 1 2 2 4 . . . . . . . . . Tunnel 9 | . 1 2 2 4 . . . . . . . . . Scanalyzers . | . . . . . . . . . . . . . . Garrison Access . | . . . . . . . . . . . . . . Data Cores Recovered . | . . . . . . . . . . . . . . Used . | . . . . . . . . . . . . . . Hacking Detections 31 | . 2 2 6 12 2 2 . . 5 . . . . Full Trace Events 6 | . . 1 1 2 1 1 . . . . . . . Feedback Events 1 | . . . . . . 1 . . . . . . . Corruption 1 | . . . . . . 1 . . . . . . . Feedback Blocked . | . . . . . . . . . . . . . . Robot Schematics Acquired . | . . . . . . . . . . . . . . Robots Built . | . . . . . . . . . . . . . . Authchips . | . . . . . . . . . . . . . . Time . | . . . . . . . . . . . . . . Total Robot Build Rating . | . . . . . . . . . . . . . . Part Schematics Acquired . | . . . . . . . . . . . . . . Parts Built . | . . . . . . . . . . . . . . Authchips . | . . . . . . . . . . . . . . Time . | . . . . . . . . . . . . . . Total Part Build Rating . | . . . . . . . . . . . . . . Parts Repaired 1 | . . . 1 . . . . . . . . . . Time 60 | . . . 60 . . . . . . . . . . Parts Recycled . | . . . . . . . . . . . . . . Recycled Matter . | . . . . . . . . . . . . . . Retrieved Matter . | . . . . . . . . . . . . . . Retrieved Components . | . . . . . . . . . . . . . . Parts Scanalyzed . | . . . . . . . . . . . . . . Part Schematics Acquired . | . . . . . . . . . . . . . . Parts Damaged . | . . . . . . . . . . . . . . Bothacking | -11 -10 -9 -8 -7 -6 -5 -5 -5 -4 -4 -4 -4 -3 ------------ Run | Scr Mat Mat Mat Fac Fac Fac Upp Upp Fac Upp Upp War Pro Used RIF Installer . | . . . . . . . . . . . . . . Robots Hacked 2 | . . . . . 1 . . . . . . . 1 Non-combat . | . . . . . . . . . . . . . . Combat 2 | . . . . . 1 . . . . . . . 1 Robot Hacks Applied . | . . . . . . . . . . . . . . Relay Couplers Released . | . . . . . . . . . . . . . . Fabnet Peak Effective % 9 | . . . . . 9 3 3 3 . . . . 9 Autooverrided 2 | . . . . . 1 . . . . . . . 1 Robots Rewired . | . . . . . . . . . . . . . . Allies Hacked . | . . . . . . . . . . . . . . Hacks Repelled . | . . . . . . . . . . . . . . Allies | -11 -10 -9 -8 -7 -6 -5 -5 -5 -4 -4 -4 -4 -3 -------- Run | Scr Mat Mat Mat Fac Fac Fac Upp Upp Fac Upp Upp War Pro Total Allies 5 | . . . . 3 1 . . . . . . . 1 Largest Group 3 | . . . . 3 1 . . . . . . . . Highest-Rated Group 93 | . . . . 93 29 . . . . . . . . Highest-Rated Ally 31 | . . . . 31 29 . . . . . . . . Total Orders 4 | . . . . . . 2 . . 2 . . . . EXPLORE 3 | . . . . . . 2 . . 1 . . . . RETURN 1 | . . . . . . . . . 1 . . . . Ally Attacks 30 | . . . . 25 4 . . . . . . . 1 Total Damage 479 | . . . . 403 76 . . . . . . . . Kills 3 | . . . . 3 . . . . . . . . . Allies Corrupted 1 | . . . . . . . . . . . . . 1 Allies Melted . | . . . . . . . . . . . . . . Intel | -11 -10 -9 -8 -7 -6 -5 -5 -5 -4 -4 -4 -4 -3 ------- Run | Scr Mat Mat Mat Fac Fac Fac Upp Upp Fac Upp Upp War Pro Robot Analysis Total 3 | . 1 . 1 1 . . . . . . . . . Derelict Logs Recovered 5 | . . . . . . . 2 . . 2 1 . . Drone Launches 3 | . . . . . . 2 . . 1 . . . . Drone Recoveries 1 | . . . . . . . . . 1 . . . . Exploration | -11 -10 -9 -8 -7 -6 -5 -5 -5 -4 -4 -4 -4 -3 ------------- Run | Scr Mat Mat Mat Fac Fac Fac Upp Upp Fac Upp Upp War Pro Turns Passed 13856 | . 991 1003 3092 3417 681 758 182 55 540 1676 671 667 123 Spaces Moved 7996 | 1 592 445 1110 1723 642 701 305 99 820 543 410 534 71 Core 882 | . . . . . 347 278 . . . 257 . . . Treads 3437 | . . 401 1110 1669 . . . . . 223 34 . . Legs 1675 | 1 592 44 . . . . . . . 57 376 534 71 Wheels 347 | . . . . 54 293 . . . . . . . . Hover 1655 | . . . . . 2 423 305 99 820 6 . . . Flight . | . . . . . . . . . . . . . . Fastest Speed 40 | 120 120 120 160 100 50 50 56 56 40 44 120 120 120 Average Speed 139 | 120 120 156 229 164 75 61 56 56 48 280 133 120 121 Slowest Speed 1200 | 120 120 160 240 240 115 116 56 56 116 1200 320 120 260 Overloaded Moves . | . . . . . . . . . . . . . . Propulsion Burnouts . | . . . . . . . . . . . . . . Robots Hopped . | . . . . . . . . . . . . . . Cave-ins Triggered . | . . . . . . . . . . . . . . Exploration Rate (%) 38 | 2 53 50 75 54 18 16 49 15 20 58 56 66 9 Regions Visited 13 Branch Regions 6 Pre-discovered Areas 11 | . 1 2 2 4 . . . . . 2 . . . Known Exits Taken 3 | . . 1 . . . . 1 . 1 . . . . Unknown Exits Taken 10 | 1 1 . 1 1 1 1 . 1 . 1 1 1 . Scrap Searched 4 | . . . . . . . 2 1 . . 1 . . Spaces Dug 28 | . . . . 7 . 14 . . 7 . . . . Terrain Destroyed 119 | . . . . 67 19 14 . . 7 . . . 12 Melee 21 | . . . . . . 14 . . 7 . . . . Projectile 59 | . . . . 28 19 . . . . . . . 12 AOE 39 | . . . . 39 . . . . . . . . . Terrain Rammed . | . . . . . . . . . . . . . . Walls Destroyed . | . . . . . . . . . . . . . . Machines Disabled . | . . . . . . . . . . . . . . Actions | -11 -10 -9 -8 -7 -6 -5 -5 -5 -4 -4 -4 -4 -3 --------- Run | Scr Mat Mat Mat Fac Fac Fac Upp Upp Fac Upp Upp War Pro Total 9672 | . 713 607 1477 2066 748 980 315 98 929 630 463 555 91 Wait 588 | . 18 15 115 89 49 231 . . 41 6 9 14 1 Move 7983 | . 591 444 1109 1722 641 700 304 98 819 542 409 533 71 Hop . | . . . . . . . . . . . . . . Pick Up 69 | . 3 10 16 13 4 4 2 . 9 4 2 . 2 Fast Attach 98 | . 1 8 10 11 7 9 4 . 17 18 7 4 2 Attach 42 | . 1 3 4 14 5 2 . . 3 5 2 . 3 Detach 19 | . 1 . 1 2 1 . 1 . 5 7 1 . . Swap 52 | . 4 12 14 15 1 . 1 . 3 . 2 . . Drop 97 | . 3 13 28 25 . 3 3 . 11 6 . 2 3 Fire 583 | . 90 102 180 166 39 . . . . . . . 6 Melee 129 | . . . . . . 31 . . 21 41 31 2 3 Ram 2 | . . . . . 1 . . . . 1 . . . Kick 1 | . 1 . . . . . . . . . . . . Crush 9 | . . . . 9 . . . . . . . . . Escape Stasis . | . . . . . . . . . . . . . . Rewire . | . . . . . . . . . . . . . . Trap . | . . . . . . . . . . . . . . Miscellaneous . | . . . . . . . . . . . . . . Route ------- -11/Scrapyard -10/Materials (discovered 2 exits: *Mat / [*Min]) -9/Materials (discovered 4 exits: *Mat / [*Min] / [*Sto x2]) -8/Materials (discovered 2 exits: *Fac x2) -7/Factory (discovered 4 exits: *Fac x3 / [*Low]) -6/Factory -5/Factory (discovered 2 exits: *Upp / [*Ext]) -5/Upper Caves -5/Upper Caves -4/Factory (discovered 2 exits: *Upp x2) -4/Upper Caves -4/Upper Caves -4/Warlord -3/Proximity Caves History --------- Turn | Location | Event 1 | -11/Scrapyard | Discovered new exit (range 0) 1 | -11/Scrapyard | Entered Materials 93 | -10/Materials | Central database locked down 249 | -10/Materials | Discovered new exit (range 15) 301 | -10/Materials | Build established: Mutant 653 | -10/Materials | Discovered new exit (range 16) 992 | -10/Materials | Entered another Materials area 992 | -9/Materials | Evolved 2 slots: Propulsion x1, Utility x1 1012 | -9/Materials | Discovered new exit (range 4) 1113 | -9/Materials | Discovered new exit (range 16) 1155 | -9/Materials | Discovered new exit (range 11) 1464 | -9/Materials | Build established: Scavenger-Mutant 1792 | -9/Materials | Discovered new exit (range 13) 1994 | -9/Materials | Identified exit to Materials 1995 | -9/Materials | Entered another Materials area 1995 | -8/Materials | Evolved 2 slots: Utility x2 2697 | -8/Materials | Lost 3 parts (1n2u) 2699 | -8/Materials | Found Prototype Device 2787 | -8/Materials | Discovered new exit (range 15) 3655 | -8/Materials | Repaired Enh. Autogun 5032 | -8/Materials | Discovered new exit (range 11) 5087 | -8/Materials | Entered Factory 5087 | -7/Factory | Evolved 2 slots: Propulsion x1, Utility x1 6429 | -7/Factory | Lost 5 parts (2n1u2w) 6443 | -7/Factory | Discovered new exit (range 8) 6793 | -7/Factory | Allied Derelicts emerged from ambush trap array 7007 | -7/Factory | Discovered new exit (range 15) 7167 | -7/Factory | Build established: Mutant 7867 | -7/Factory | Discovered new exit (range 10) 7887 | -7/Factory | First assault squad dispatched 8447 | -7/Factory | System corruption reached 10% 8451 | -7/Factory | Core integrity fell below 50% 8486 | -7/Factory | Discovered new exit (range 16) 8500 | -7/Factory | Lost 12 parts (5n6u1w) 8504 | -7/Factory | Entered another Factory area 8504 | -6/Factory | Evolved 2 slots: Weapon x2 8521 | -6/Factory | Identified Active Sensor Suite 8984 | -6/Factory | Released all parts (4) 8988 | -6/Factory | Core integrity fell below 50% 9002 | -6/Factory | Lost 8 parts (1p3n2u2w) 9114 | -6/Factory | Core integrity fell below 20% 9182 | -6/Factory | Discovered new exit (range 7) 9185 | -6/Factory | Entered another Factory area 9185 | -5/Factory | Evolved 2 slots: Propulsion x2 9779 | -5/Factory | Discovered new exit (range 16) 9868 | -5/Factory | Discovered new exit (range 70) 9943 | -5/Factory | Entered Upper Caves 9948 | -5/Upper Caves | Identified exit to Upper Caves 9991 | -5/Upper Caves | Build established: Scavenger-Mutant 10099 | -5/Upper Caves | Encountered a Warlord checkpoint 10125 | -5/Upper Caves | Entered another Upper Caves area 10167 | -5/Upper Caves | Discovered new exit (range 10) 10180 | -5/Upper Caves | Entered Factory 10180 | -4/Factory | Evolved 2 slots: Power x1, Utility x1 10181 | -4/Factory | Identified exit to Upper Caves 10311 | -4/Factory | Build established: Hacker-Mutant 10720 | -4/Factory | Entered Upper Caves 10777 | -4/Upper Caves | Lost 9 parts (2p4n2u1w) 10817 | -4/Upper Caves | Spotted B-86 Titan 10864 | -4/Upper Caves | Core integrity fell below 50% 10872 | -4/Upper Caves | Destroyed B-86 Titan 10897 | -4/Upper Caves | Lost 9 parts (4n3u2w) 11139 | -4/Upper Caves | Build established: Mutant 12318 | -4/Upper Caves | Build established: Scavenger-Gladiator 12353 | -4/Upper Caves | Discovered new exit (range 15) 12396 | -4/Upper Caves | Entered another Upper Caves area 12408 | -4/Upper Caves | Learned Research terminal intel 12578 | -4/Upper Caves | Core integrity fell below 20% 12634 | -4/Upper Caves | Found Imp. Powered Armor 13054 | -4/Upper Caves | Discovered new exit (range 10) 13067 | -4/Upper Caves | Entered Warlord 13107 | -4/Warlord | System corruption cleaned by Quarantine Array 13259 | -4/Warlord | Visited the Vortex Lab 13267 | -4/Warlord | Warlord's base attacked by MAIN.C 13270 | -4/Warlord | Found Prototype Energy Cannon 13270 | -4/Warlord | Identified Vortex Driver 13272 | -4/Warlord | Found Vortex Driver 13537 | -4/Warlord | Met Warlord 13601 | -4/Warlord | Spotted Executioner 13615 | -4/Warlord | Spotted Striker 13617 | -4/Warlord | Warlord forces counterattacked 13702 | -4/Warlord | Opened side exit 13724 | -4/Warlord | Discovered new exit (range 10) 13734 | -4/Warlord | Entered Proximity Caves 13817 | -3/Proximity Caves | Attracted the attention of an 0b10 outpost 13858 | -3/Proximity Caves | Core destroyed Last Messages --------------- 13849_ Penetrated by Slug. 13849_ Slug penetrates Wall. 13851_ Overheating: Vortex Driver damaged (-52). 13851_ Vortex penetrates G-67 Veteran. 13851_ Destroyed Plasma Rifle. 13851_ Vortex penetrates Earth. 13852_ Critical hit (Burn: +37). 13852_ Mak. Terrain Scan Processor destroyed. 13852_ Myomer Leg destroyed. 13853_ Overheating: System interference. 13853_ Imp. Target Analyzer temporarily disabled. 13853_ Vortex Driver temporarily disabled. 13854_ Overheating: System interference. 13854_ Vortex Driver temporarily disabled. 13854_ Myomer Leg destroyed. 13855_ Vortex Driver destroyed. 13857_ Overheating: Matter decay (-51). 13857_ Acquired Med. Treads. 13858_ Power failure, Rnf. Fission Core shutdown. 13858_ Overheating: Core damaged (-149). Map ----- +----------------------------------------------------+ | | | ?????????????????????????????????????????????????? | | ?????????????????????????????????????????????????? | | ?????????????????????????????????????????????????? | | ?????????????????????????????????????????????????? | | ?????????????????????????????????????????????????? | | ?????????????????????????????????????????????????? | | ?????????????????????????????????????????????????? | | ?????????????????????????????????????????????????? | | ?????????????????????????????????????????????????? | | ?????????????????????????????????????????????????? | | ?????????????????????????????????????????????????? | | ?????????????????????????????????????????????????? | | ?????????????????????????????????????????????????? | | ?????????????????????????????????????????????????? | | ?????????#####?#?????????????####????????????????? | | ?????????# # ##? #????????### ###??????????????? | | ??????#### #?# #???????# ##?????????????? | | ??????# ##?# #?????? ##????????????? | | ??????# ##?# #?????# #????????????? | | ??????## # ##?# #???## #????????????? | | ????####### #??#;#### #????????????? | | ###?# ##### ##### ## ##???????????? | | # #?## # # /#" ;#???????????? | | #??# %=# #???????????? | | # #### # ##### g/@% #??????????? | | # ## ######???#; =%%* ## ## ???????? | | # ##????????## Y%[=##? ?? ???????? | | # #??????????# ;#?? ??? ????????? | | # # ##?????????# ?? ???? ????????? | | # #??????????# #?? #?????????????? | | ## ## #??????????## ""?? "????????????? | | #### # #??????????####### # ?? "#???????????? | | # ??? #????????????????? #"% ? "#???????????? | | ###??? ?????????????????? #?"=%?"????????????? | | ????? ????????????????? #??#"#?????????????? | | ????? ####????????????????? ???? ?????????????? | | ???? ?????????????????????###?????????????????? | | ??????##?????????????????????????????????????????? | | ?????????????????????????????????????????????????? | | ?????????????????????????????????????????????????? | | ?????????????????????????????????????????????????? | | ?????????????????????????????????????????????????? | | ?????????????????????????????????????????????????? | | ?????????????????????????????????????????????????? | | ?????????????????????????????????????????????????? | | ?????????????????????????????????????????????????? | | ?????????????????????????????????????????????????? | | ?????????????????????????????????????????????????? | | ?????????????????????????????????????????????????? | +----------------------------------------------------+ Best States ------------- Heat Dissipation 69 Coolant Potential 80 Energy Generation 39 Energy Capacity 550 Matter Stores 300 Matter Capacity 350 Sight Range 20 Robot Scan Range 20 Terrain Scan Range 16 Terrain Scan Density 260 Armor Coverage 1000 Weapon Cycling 15 Phase Shifting 5 Evasion (%) 65 Targeting Accuracy 6 Melee Accuracy 8 Target Analysis 6 Recoil Reduction 4 Offensive Hacking 34 Defensive Hacking 14 Authchip Count 3 Item Schematics ----------------- None Robot Schematics ------------------ None Fabricated ------------ Nothing Alien Tech Used ----------------- None Achievements -------------- None Challenges ------------ None Game ------ Seed SpikedMissileNeutralizer Manual? 0 Play Time 01:33:57 Cumulative 296.0 hours Start 2022.06.06 @ 13:29:07 End 2022.06.06 @ 17:50:31 Sessions 1 Manual Loads 0 Difficulty Rogue Special Mode None Game No. 379 Rogue 378 Adventurer 0 Explorer 1 Win Type - Total 6 Types 5/0/0/1/0/0/0/0/0 Lore% 69 Gallery% 80 Achievement% 58 Wizard Run 0 Options --------- ASCII 0 Keyboard 1 Movement Vi Keybinds 0 Fullscreen 1 Font 18/SmallcapsGlow Map View 76x50 Tactical HUD 1 Map Filters NONE Filters NONE Steam 1 RUN: 4c624326-df6d-4535-97de-f734bcd2e476